bitfinex-derivatives/quotes_SOLF0:USTF0_20250309
["timestamp","ask_amount","ask_price","bid_price","bid_amount"]
[1741559761982,7.8682,127.11,127.06,38.5283]
[1741559762181,34.58,127.14,127.06,38.5283]
[1741559762379,7.8677,127.12,127.07,7.8698]
[1741559762574,34.58,127.14,127.07,7.8698]
[1741559762781,260.327,127.19,127.09,52.14276239]
[1741559763077,7.8653,127.15,127.1,34.56]
[1741559763279,260.327,127.19,127.13,0.05328417]
[1741559763676,7.8659,127.14,127.13,0.05328417]
[1741559764278,7.8648,127.16,127.13,0.05328417]
[1741559764677,294.887,127.19,127.13,0.05328417]
[1741559764879,42.7223149,127.2,127.13,0.05328417]
[1741559765579,7.8651,127.16,127.13,0.05328417]
[1741559765788,86.64276239,127.21,127.1,34.56]
[1741559765977,86.64276239,127.21,127.13,0.05429568]
[1741559766182,86.64276239,127.21,127.1,34.56]
[1741559766379,86.64276239,127.21,127.16,2.632e-05]
[1741559767085,7.8641,127.17,127.16,2.632e-05]
[1741559767278,42.3641,127.17,127.16,2.632e-05]
[1741559767480,42.7958,127.17,127.16,2.632e-05]
[1741559768384,42.3641,127.17,127.16,2.632e-05]
[1741559768782,7.8641,127.17,127.16,2.632e-05]
[1741559775096,63.94686239,127.17,127.16,2.632e-05]
[1741559775297,63.94686239,127.17,127.06,7.8707]
[1741559775298,7.8684,127.11,127.06,7.8707]
[1741559775491,34.34,127.14,127.06,7.8707]
[1741559776297,34.34,127.14,127.05,34.34]
[1741559776598,0.05229743,127.12,127.09,0.05481561]
[1741559777286,0.05229743,127.12,127.03,10.82675566]
[1741559777492,7.8706,127.07,127.03,10.82675566]
[1741559777693,86.48276239,127.14,127.03,10.82675566]
[1741559777894,34.34,127.14,127.03,10.82675566]
[1741559778099,34.34,127.14,127.02,52.14276239]
[1741559778398,0.06024042,127.09,127.07,0.05490421]
[1741559778602,34.34,127.14,127.07,34.31490421]
[1741559778804,0.05184935,127.09,127.07,42.18480421]
[1741559779007,0.0539264,127.09,127.07,42.18480421]
[1741559779310,0.0539264,127.09,127.07,34.31490421]
[1741559779697,234.96816239,127.15,127.07,34.31490421]
[1741559779698,182.3916,127.15,127.07,34.31490421]
[1741559780011,50.53896574,127.18,127.09,52.14276239]
[1741559780610,34.22,127.18,127.08,4.1336]
[1741559780798,7.8665,127.13,127.12,1.918e-05]
[1741559782212,43.91771649,127.13,127.12,1.918e-05]
[1741559782412,38.92431649,127.13,127.01,32.11121649]
[1741559782711,34.98431649,127.13,127.02,34.24]
[1741559782914,2.8731,127.13,127.04,32.11121649]
[1741559783404,34.98431649,127.13,127.02,34.24]
[1741559783613,7.8696,127.08,127.07,0.05640726]
[1741559784304,7.8694,127.09,127.07,0.05640726]
[1741559784812,34.23266526,127.1,127.07,0.05640726]
[1741559785109,7.869,127.09,127.07,0.05640726]
[1741559785306,0.05266526,127.1,127.07,0.05640726]
[1741559785807,7.8696,127.08,127.07,0.05640726]
[1741559786409,7.8693,127.09,127.07,0.05640726]
[1741559786808,0.05266526,127.1,127.07,0.05640726]
[1741559787007,7.92146526,127.1,127.07,0.05640726]
[1741559787210,0.05266526,127.1,127.07,0.05640726]
[1741559787606,36.0731,127.17,127.09,7.8689]
[1741559787800,34.0,127.17,127.1,35.9849]
[1741559788607,34.0,127.17,127.1,43.8533]
[1741559788807,0.0589717,127.15,127.12,0.05734799]
[1741559789106,7.8665,127.13,127.12,0.05734799]
[1741559789507,7.8665,127.13,127.12,4.799e-05]
[1741559789707,41.9065,127.13,127.12,4.799e-05]
[1741559790214,45.8465,127.13,127.12,4.799e-05]
[1741559791103,228.2381,127.13,127.12,4.799e-05]
[1741559791415,52.17555359,127.11,127.0,34.06]
[1741559792110,311.77555359,127.11,126.99,3.9765]
[1741559792310,317.67640917,127.11,126.99,3.9765]
[1741559792614,0.05075738,127.07,127.04,8.61e-06]
[1741559792809,34.04,127.06,127.04,8.61e-06]
[1741559793212,7.8715,127.05,127.04,8.61e-06]
[1741559794217,0.05075738,127.07,127.04,8.61e-06]
[1741559794518,7.8713,127.06,127.04,8.61e-06]
[1741559794813,0.05075738,127.07,127.04,8.61e-06]
[1741559795016,0.05075738,127.07,127.04,52.1755622]
[1741559796006,0.05075738,127.07,127.04,60.0472622]
[1741559796316,0.05075738,127.07,127.04,52.1755622]
[1741559796519,2.0186,127.13,127.04,52.1755622]
[1741559796720,345.79555359,127.14,127.04,52.17555359]
[1741559796910,7.8686,127.1,127.06,7.8708]
[1741559797216,345.79555359,127.14,127.06,33.98]
[1741559797522,7.8684,127.1,127.09,0.0534817]
[1741559798313,7.8684,127.1,127.09,8.17e-05]
[1741559798705,41.7684,127.1,127.09,8.17e-05]
[1741559798909,45.7084,127.1,127.09,8.17e-05]
[1741559799409,46.6294,127.1,127.09,8.17e-05]
[1741559806120,42.6894,127.1,127.09,8.17e-05]
[1741559807214,41.7684,127.1,127.09,8.17e-05]
[1741559807416,7.8684,127.1,127.09,8.17e-05]
[1741559826735,40.7684,127.1,127.09,8.17e-05]
[1741559827535,7.8684,127.1,127.09,8.17e-05]
[1741559831043,40.6484,127.1,127.09,8.17e-05]
[1741559831244,64.89573411,127.1,126.94,213.77632174]
[1741559831441,67.01363411,127.1,127.0,2.0034]
[1741559831844,7.8734,127.02,127.0,2.0034]
[1741559832443,7.874,127.01,127.0,2.05439501]
[1741559832642,7.874,127.01,127.0,0.05099501]
[1741559834145,32.79724005,127.03,127.0,0.05099501]
[1741559834551,7.874,127.01,127.0,0.05099501]
[1741559835450,7.874,127.01,127.0,9.501e-05]
[1741559837148,214.50733411,127.02,126.91,2.0456]
[1741559837348,32.11573411,126.99,126.91,2.0456]
[1741559837648,34.679,126.98,126.89,43.22728091]
[1741559838246,7.8782,126.95,126.89,75.34301502]
[1741559838448,7.93225425,126.95,126.92,0.0582724]
[1741559839052,0.05405425,126.95,126.92,7.9374724]
[1741559839253,0.05405425,126.95,126.93,2.1079]
[1741559841446,7.8767,126.97,126.93,2.1079]
[1741559841842,7.8759,126.98,126.93,2.1079]
[1741559842050,182.3916,127.01,126.94,1.9402]
[1741559842254,32.74,127.01,126.94,1.9402]
[1741559842453,7.8762,126.98,126.96,0.05877473]
[1741559842953,0.06067868,126.99,126.96,0.05877473]
[1741559843650,7.8762,126.98,126.96,0.05877473]
[1741559843855,0.06067868,126.99,126.96,0.05877473]
[1741559844748,7.8763,126.98,126.96,0.05877473]
[1741559844948,0.06067868,126.99,126.96,0.05877473]
[1741559845857,7.8762,126.98,126.96,0.05877473]
[1741559846056,0.06067868,126.99,126.96,0.05877473]
[1741559846451,7.8742,127.01,126.96,0.05877473]
[1741559846653,32.74,127.07,126.98,32.11573411]
[1741559846854,32.74,127.07,126.99,2.0571]
[1741559847151,4.0221,127.09,126.99,2.0571]
[1741559847354,32.76,127.08,126.99,2.0571]
[1741559847556,0.05444881,127.05,127.03,0.05731377]
[1741559848558,7.92604881,127.05,127.03,0.05731377]
[1741559848854,0.05444881,127.05,127.03,1.377e-05]
[1741559849055,32.91444881,127.05,127.03,1.377e-05]
[1741559849259,36.85444881,127.05,126.86,43.40935834]
[1741559849459,32.11573411,127.03,126.93,32.86]
[1741559849860,32.11573411,127.03,126.93,64.97573411]
[1741559850461,7.876,126.98,126.93,64.97573411]
[1741559850757,0.05082861,126.99,126.93,64.97573411]
[1741559850957,7.92642861,126.99,126.94,0.05839571]
[1741559851257,0.05082861,126.99,126.96,32.11573411]
[1741559851457,32.86,127.05,126.97,32.98]
[1741559851658,32.86,127.05,126.98,1.9912]
[1741559851858,32.86,127.05,126.98,3.9484]
[1741559852052,7.8733,127.03,126.98,3.9484]
[1741559852660,0.06019144,127.02,126.99,0.05519392]
[1741559853060,7.93369144,127.02,126.99,0.05519392]
[1741559853362,0.06019144,127.02,126.99,0.05519392]
[1741559853551,219.4516,127.09,126.99,7.93039392]
[1741559853754,34.9628,127.09,126.98,36.06413411]
[1741559853954,7.8724,127.04,126.99,7.875]
[1741559854154,7.8724,127.04,127.0,32.11573411]
[1741559854358,7.8724,127.04,127.01,32.96]
[1741559854561,259.86,127.11,127.03,32.11573411]
[1741559854762,249.51543411,127.12,127.03,32.11573411]
[1741559854763,0.05604568,127.04,127.03,32.11573411]
[1741559854952,182.3916,127.12,127.03,32.11573411]
[1741559855354,0.06032619,127.09,127.06,0.05120183]
[1741559858961,7.87,127.08,127.06,0.05120183]
[1741559860063,7.92942619,127.09,127.06,0.05120183]
[1741559861756,0.06032619,127.09,127.06,7.92210183]
[1741559861958,182.3916,127.15,127.06,0.05120183]
[1741559861959,215.1116,127.15,127.06,0.05120183]
[1741559862159,7.8694,127.09,127.05,72.82693411]
[1741559862358,7.8694,127.09,127.05,64.95573411]
[1741559862864,7.8694,127.09,127.06,7.8707]
[1741559863066,7.8694,127.09,127.06,7.922576]
[1741559863662,7.8687,127.1,127.06,7.922576]
[1741559863964,292.44,127.17,127.07,32.11573411]
[1741559864155,292.44,127.17,127.08,32.62]
[1741559864559,292.44,127.17,127.11,0.05019256]
[1741559865767,259.82,127.17,127.11,0.05019256]
[1741559865960,259.82,127.17,127.11,32.69019256]
[1741559866361,7.8669,127.13,127.11,32.69019256]
[1741559866674,32.62,127.2,127.11,32.69019256]
[1741559866965,32.62,127.2,127.11,32.64]
[1741559867166,64.73573411,127.2,127.14,0.05080676]
[1741559867868,7.8653,127.15,127.14,0.05080676]
[1741559869662,220.61063411,127.22,127.14,0.05080676]
[1741559869865,220.61063411,127.22,127.11,76.56063411]
[1741559870062,220.61063411,127.22,127.17,0.05653808]
[1741559870266,7.8635,127.18,127.17,0.05653808]
[1741559870970,188.4949,127.22,127.17,0.05653808]
[1741559871173,6.1033,127.22,127.17,0.05653808]
[1741559871770,7.8635,127.18,127.17,0.05653808]
[1741559872968,7.8631,127.19,127.17,0.05653808]
[1741559873168,32.11573411,127.24,127.17,0.05653808]
[1741559873370,222.5163,127.28,127.18,32.11573411]
[1741559873764,32.11573411,127.27,127.16,34.23853411]
[1741559873969,7.8604,127.23,127.22,4.217e-05]
[1741559879886,7.91885971,127.24,127.22,4.217e-05]
[1741559880173,0.05885971,127.24,127.22,4.217e-05]
[1741559881083,7.8604,127.23,127.22,4.217e-05]
[1741559884284,0.05885971,127.24,127.22,4.217e-05]
[1741559884988,7.8604,127.23,127.22,4.217e-05]
[1741559889787,0.05885971,127.24,127.22,4.217e-05]
[1741559889986,0.05885971,127.24,127.23,53.84630208]
[1741559890180,259.6,127.3,127.23,53.84630208]
[1741559890386,7.8597,127.24,127.23,53.84630208]
[1741559890994,53.86630208,127.28,127.2,33.84]
[1741559891287,53.86630208,127.28,127.23,0.057797]
[1741559891990,7.8597,127.24,127.23,0.057797]
[1741559894685,7.8594,127.25,127.23,20.08409908]
[1741559895080,33.82,127.29,127.23,20.08409908]
[1741559895292,33.82,127.29,127.23,0.057797]
[1741559895693,7.8588,127.26,127.23,0.057797]
[1741559895990,293.44,127.3,127.23,0.057797]
[1741559896192,7.8597,127.24,127.23,0.057797]
[1741559898890,293.44,127.3,127.23,0.057797]
[1741559899085,7.8597,127.24,127.23,0.057797]
[1741559902191,7.8597,127.24,127.23,9.7e-05]
[1741559904695,31.80600208,127.24,127.14,2.0989]
[1741559904893,20.02630208,127.21,127.11,20.02630208]
[1741559905088,33.5,127.2,127.11,53.52630208]
[1741559905293,7.8671,127.13,127.11,53.52630208]
[1741559905800,33.52,127.16,127.1,45.39415834]
[1741559906098,0.05054607,127.13,127.11,0.05458028]
[1741559907802,7.8637,127.18,127.12,53.54630208]
[1741559908003,309.11556087,127.22,127.14,20.02630208]
[1741559908296,309.11556087,127.22,127.16,20.02630208]
[1741559908495,292.9,127.22,127.16,20.02630208]
[1741559909001,292.9,127.22,127.18,0.0598615]
[1741559909903,33.52,127.22,127.18,0.0598615]
[1741559910891,7.8626,127.2,127.18,0.0598615]
[1741559911303,1.9178,127.24,127.18,20.08616358]
[1741559911601,7.8606,127.23,127.18,27.94916358]
[1741559911802,7.8606,127.23,127.18,20.02630208]
[1741559912098,7.86,127.24,127.2,20.02630208]
[1741559912303,7.86,127.24,127.19,39.88883307]
[1741559912503,7.86,127.24,127.21,0.05410935]
[1741559914899,33.38,127.27,127.21,0.05410935]
[1741559915105,65.40633307,127.27,127.21,0.05410935]
[1741559915605,7.861,127.22,127.21,0.05410935]
[1741559915793,33.38,127.27,127.21,0.05410935]
[1741559915999,7.8609,127.23,127.21,0.05410935]
[1741559916305,33.38,127.27,127.21,0.05410935]
[1741559916805,7.861,127.22,127.21,0.05410935]
[1741559919205,33.38,127.27,127.21,0.05410935]
[1741559919409,263.5492,127.28,127.21,0.05410935]
[1741559919604,33.18,127.27,127.21,0.05410935]
[1741559919813,7.8601,127.24,127.21,0.05410935]
[1741559920109,33.18,127.27,127.21,0.05410935]
[1741559921004,7.8601,127.24,127.21,0.05410935]
[1741559921510,7.8601,127.24,127.21,7.91550935]
[1741559923516,7.8594,127.25,127.22,7.861]
[1741559923699,7.8594,127.25,127.21,0.05410935]
[1741559923700,35.057,127.29,127.21,2.03220935]
[1741559923904,35.057,127.29,127.21,1.9781]
[1741559924209,7.861,127.23,127.21,1.9781]
[1741559924709,7.8601,127.24,127.21,9.89925299]
[1741559924910,35.057,127.29,127.21,1.9781]
[1741559925105,35.057,127.29,127.21,2.03860685]
[1741559925306,35.057,127.29,127.22,7.8605]
[1741559925505,35.057,127.29,127.24,0.0549809]
[1741559926013,2.057,127.29,127.24,0.0549809]
[1741559926310,215.3916,127.31,127.24,0.0549809]
[1741559926709,33.0,127.31,127.24,40.8943809]
[1741559927207,7.8577,127.28,127.24,33.0349809]
[1741559927411,34.9529,127.32,127.24,35.1343809]
[1741559927613,34.9529,127.32,127.24,35.0794]
[1741559927913,34.9529,127.32,127.25,0.05791452]
[1741559930112,7.8581,127.27,127.25,0.05791452]
[1741559930811,2.1078,127.33,127.25,32.08424759]
[1741559931018,16.35143675,127.34,127.26,32.02633307]
[1741559931217,16.35143675,127.34,127.28,0.05578359]
[1741559931411,7.8553,127.32,127.28,0.05578359]
[1741559931718,3.9911,127.36,127.28,0.05578359]
[1741559931911,7.8558,127.31,127.26,32.02633307]
[1741559932107,33.24,127.32,127.24,35.0794]
[1741559932309,33.24,127.31,127.24,32.98]
[1741559933116,33.24,127.31,127.25,7.859]
[1741559933313,33.24,127.31,127.24,32.98]
[1741559933516,0.05667631,127.29,127.27,0.05727819]
[1741559933717,7.91337631,127.29,127.27,0.05727819]
[1741559934310,7.8573,127.28,127.27,7.819e-05]
[1741559935014,0.05667631,127.29,127.27,7.819e-05]
[1741559936012,0.05667631,127.29,127.28,20.00334589]
[1741559938324,0.05667631,127.29,127.27,7.819e-05]
[1741559938325,7.8573,127.28,127.27,7.819e-05]
[1741559944919,11.8511,127.28,127.27,7.819e-05]
[1741559945429,13.9334,127.28,127.27,7.819e-05]
[1741559946423,7.8573,127.28,127.27,7.819e-05]
[1741559949131,7.91367631,127.29,127.27,7.819e-05]
[1741559949340,0.05667631,127.29,127.27,7.819e-05]
[1741559949838,59.46922595,127.34,127.28,39.87181818]
[1741559950038,7.8549,127.32,127.28,32.01451818]
[1741559950342,43.15769212,127.34,127.28,32.01451818]
[1741559950535,10.78942303,127.32,127.28,32.01451818]
[1741559950935,0.05042604,127.31,127.29,0.05327187]
[1741559954741,7.90622604,127.31,127.29,0.05327187]
[1741559955339,7.856,127.3,127.29,0.05327187]
[1741559955741,0.05042604,127.31,127.29,0.05327187]
[1741559956143,0.05042604,127.31,127.29,7.187e-05]
[1741559956444,7.856,127.3,127.29,7.187e-05]
[1741559956641,0.05042604,127.31,127.29,7.187e-05]
[1741559957046,7.90602604,127.31,127.29,7.187e-05]
[1741559957340,0.05042604,127.31,127.29,7.187e-05]
[1741559958735,7.90602604,127.31,127.29,7.187e-05]
[1741559959140,0.05042604,127.31,127.29,7.187e-05]
[1741559959644,22.21007239,127.38,127.3,7.856]
[1741559959836,22.21007239,127.38,127.31,32.01451818]
[1741559959837,16.31755039,127.38,127.31,32.01451818]
[1741559960039,111.07886769,127.39,127.3,1.9634]
[1741559960343,19.99274904,127.37,127.29,1.9349]
[1741559960845,0.0578722,127.34,127.32,0.05508056]
[1741559961146,7.8542,127.33,127.32,0.05508056]
[1741559963643,7.8542,127.33,127.32,8.056e-05]
[1741559971554,27.84694904,127.33,127.32,8.056e-05]
[1741559971756,31.89024904,127.33,127.32,8.056e-05]
[1741559974656,7.8542,127.33,127.32,8.056e-05]
[1741559976156,182.3916,127.32,127.2,1.36730645]
[1741559976361,19.99274904,127.23,127.16,43.40935834]
[1741559976653,19.99274904,127.21,127.16,43.40935834]
[1741559976851,35.3123,127.22,127.16,43.40935834]
[1741559977247,33.28,127.22,127.16,43.40935834]
[1741559977457,0.05550081,127.2,127.18,0.05940685]
[1741559978057,7.91820081,127.2,127.18,0.05940685]
[1741559978251,5.7444906,127.19,127.18,43.46876519]
[1741559979063,13.6072906,127.19,127.18,43.46876519]
[1741559979766,5.7444906,127.19,127.18,43.46876519]
[1741559979956,0.05550081,127.2,127.18,43.46876519]
[1741559980960,7.8628,127.19,127.18,43.46876519]
[1741559981761,7.91780081,127.2,127.18,43.46876519]
[1741559981967,7.91780081,127.2,127.18,0.05940685]
[1741559982166,0.05550081,127.2,127.18,0.05940685]
[1741559982364,7.8628,127.19,127.18,0.05940685]
[1741559982960,7.8628,127.19,127.18,6.85e-06]
[1741559986366,0.05550081,127.2,127.18,6.85e-06]
[1741559986968,7.8628,127.19,127.18,6.85e-06]
[1741559990769,7.91800081,127.2,127.18,6.85e-06]
[1741559991065,182.3916,127.19,127.18,6.85e-06]
[1741559991366,7.8675,127.12,127.06,32.05343442]
[1741559991569,33.58,127.14,127.06,32.05343442]
[1741559991758,7.8682,127.11,127.06,32.05343442]
[1741559992067,33.58,127.14,127.06,32.05343442]
[1741559992268,7.8684,127.1,127.09,0.05845276]
[1741559992768,7.91793377,127.11,127.09,0.05845276]
[1741559993558,0.04993377,127.11,127.09,33.71845276]
[1741559993757,293.1,127.17,127.09,35.69505276]
[1741559994069,293.1,127.17,127.09,35.6366]
[1741559994268,7.8666,127.13,127.09,35.6366]
[1741559994466,293.1,127.17,127.05,4.0828]
[1741559994665,7.8693,127.09,127.05,36.13623442]
[1741559994865,0.0574823,127.12,127.1,0.05817301]
[1741559995068,5.61826118,127.16,127.05,36.13623442]
[1741559995269,0.05829862,127.12,127.1,0.05823168]
[1741559995564,5.61826118,127.15,127.1,0.05823168]
[1741559995770,7.8678,127.11,127.1,0.05823168]
[1741559997463,0.05830601,127.12,127.1,0.05823168]
[1741559998572,0.05830601,127.12,127.1,7.92623168]
[1741559998867,2.1107,127.18,127.1,0.05823168]
[1741559999075,7.8653,127.15,127.11,9.8432]
[1741559999477,7.8653,127.15,127.11,1.9758]
[1741559999767,2.1107,127.18,127.11,1.9758]
[1741559999968,0.05031796,127.14,127.12,0.05427632]
[1741560000168,7.8637,127.18,127.13,33.7]
[1741560000672,7.8634,127.19,127.15,7.8652]
[1741560001073,35.7227,127.22,127.14,32.05343442]
[1741560001372,186.4288,127.24,127.16,0.05051265]
[1741560001573,186.4288,127.24,127.14,32.05343442]
[1741560001775,7.8624,127.2,127.19,0.05252388]
[1741560002771,4.0372,127.24,127.19,0.05252388]
[1741560002974,7.862,127.21,127.19,0.05252388]
[1741560003571,7.8622,127.2,127.19,0.05252388]
[1741560003971,4.0372,127.24,127.19,0.05252388]
[1741560004173,7.8619,127.21,127.19,0.05252388]
[1741560004873,7.8622,127.2,127.19,0.05252388]
[1741560005071,2.04,127.23,127.19,0.05252388]
[1741560005266,7.8619,127.21,127.19,0.05252388]
[1741560005571,5.62450898,127.2,127.19,0.05252388]
[1741560005771,7.8619,127.21,127.19,0.05252388]
[1741560005971,7.8622,127.2,127.19,0.05252388]
[1741560006977,7.8616,127.22,127.19,0.05252388]
[1741560007372,33.66,127.25,127.19,0.05252388]
[1741560007878,5.63529512,127.24,127.19,0.05252388]
[1741560008674,7.8613,127.22,127.19,0.05252388]
[1741560009179,7.8622,127.2,127.19,0.05252388]
[1741560009776,13.49749512,127.2,127.19,0.05252388]
[1741560010276,13.49749512,127.2,127.19,2.388e-05]
[1741560011683,5.63529512,127.2,127.19,2.388e-05]
[1741560011877,0.05177331,127.21,127.19,2.388e-05]
[1741560012277,0.05177331,127.21,127.2,7.8622]
[1741560012676,2.0656,127.27,127.19,24.06826182]
[1741560012980,80.88519212,127.3,127.24,7.8593]
[1741560013177,5.66124269,127.26,127.23,33.56]
[1741560013369,5.66124269,127.26,127.25,7.859]
[1741560013779,43.15769212,127.3,127.24,20.07587624]
[1741560013981,43.15769212,127.3,127.27,7.8578]
[1741560014171,5.66687077,127.29,127.26,20.01953794]
[1741560014377,5.66687077,127.29,127.27,33.52]
[1741560014578,43.15769212,127.3,127.27,41.3774]
[1741560015678,43.15769212,127.3,127.27,33.52]
[1741560015884,182.3916,127.34,127.27,33.52]
[1741560016181,5.66254161,127.33,127.27,33.52]
[1741560016383,5.66254161,127.33,127.29,0.05055118]
[1741560016574,5.66254161,127.32,127.29,0.05055118]
[1741560016880,13.51774161,127.32,127.29,0.05055118]
[1741560017084,5.66254161,127.32,127.29,0.05055118]
[1741560017485,5.66254161,127.31,127.29,0.05055118]
[1741560018183,2.47384161,127.3,127.29,0.05055118]
[1741560018380,33.36,127.37,127.28,31.98835133]
[1741560018579,184.4333,127.39,127.28,32.04485766]
[1741560018777,2.0417,127.39,127.31,31.98835133]
[1741560018978,2.0417,127.39,127.32,33.41607568]
[1741560019192,7.8526,127.36,127.32,37.43167568]
[1741560020478,2.0417,127.39,127.32,37.43167568]
[1741560020685,2.0417,127.39,127.32,35.44537568]
[1741560020882,2.0417,127.39,127.32,33.41607568]
[1741560021083,2.0417,127.39,127.32,0.05607568]
[1741560021084,7.8542,127.33,127.32,0.05607568]
[1741560021789,33.32,127.35,127.2,31.98835133]
[1741560022086,31.98835133,127.32,127.19,34.07305133]
[1741560022282,33.64,127.31,127.19,34.07305133]
[1741560022483,7.8597,127.25,127.19,34.07305133]
[1741560022887,7.8599,127.24,127.19,34.07305133]
[1741560023091,0.05520742,127.23,127.21,0.05506805]
[1741560023892,0.05520742,127.23,127.21,33.69506805]
[1741560024488,33.64,127.28,127.22,31.98835133]
[1741560024886,7.8579,127.27,127.22,31.98835133]
[1741560025486,33.62,127.32,127.21,33.64]
[1741560025687,33.62,127.32,127.23,0.05188747]
[1741560025886,33.62,127.32,127.21,65.62835133]
[1741560026083,33.62,127.32,127.19,2.0847]
[1741560026084,31.98835133,127.3,127.25,4.933e-05]
[1741560026795,7.8585,127.26,127.25,4.933e-05]
[1741560029991,7.91457684,127.27,127.25,4.933e-05]
[1741560030192,0.05637684,127.27,127.25,4.933e-05]
[1741560031895,0.05637684,127.27,127.25,7.85884933]
[1741560032784,0.05637684,127.27,127.25,4.933e-05]
[1741560033895,0.05637684,127.27,127.25,7.85884933]
[1741560037192,0.05637684,127.27,127.26,7.8585]
[1741560040104,0.05637684,127.27,127.25,7.85884933]
[1741560040300,0.05637684,127.27,127.25,4.933e-05]
[1741560040697,0.05637684,127.27,127.25,7.85874933]
[1741560040901,0.05637684,127.27,127.25,4.933e-05]
[1741560041301,0.05637684,127.27,127.26,7.8585]
[1741560041497,0.05637684,127.27,127.25,4.933e-05]
[1741560042699,7.91447684,127.27,127.25,4.933e-05]
[1741560045602,7.91437684,127.27,127.25,4.933e-05]
[1741560045801,0.05637684,127.27,127.25,4.933e-05]
[1741560046197,7.8585,127.26,127.25,4.933e-05]
[1741560046398,33.90545133,127.26,127.14,31.98835133]
[1741560046593,35.1156,127.25,127.15,33.14]
[1741560046794,7.8639,127.18,127.13,13.7888]
[1741560047006,7.8639,127.18,127.13,46.9288]
[1741560047195,31.98835133,127.2,127.12,43.40935834]
[1741560047401,35.95555133,127.2,127.12,43.40935834]
[1741560047602,0.05738552,127.17,127.15,0.05661317]
[1741560048003,7.92148552,127.17,127.15,0.05661317]
[1741560048502,0.05738552,127.17,127.15,0.05661317]
[1741560048709,7.8647,127.16,127.15,0.05661317]
[1741560049700,33.13738552,127.17,127.15,0.05661317]
[1741560049905,41.00168552,127.17,127.15,0.05661317]
[1741560050109,33.13738552,127.17,127.15,0.05661317]
[1741560051004,41.00188552,127.17,127.15,0.05661317]
[1741560052407,33.13738552,127.17,127.15,0.05661317]
[1741560052608,7.8647,127.16,127.15,0.05661317]
[1741560053309,33.13738552,127.17,127.15,0.05661317]
[1741560053614,0.05738552,127.17,127.15,0.05661317]
[1741560055410,0.05738552,127.17,127.15,7.92181317]
[1741560055816,0.05738552,127.17,127.15,0.05661317]
[1741560056110,7.92148552,127.17,127.15,0.05661317]
[1741560057806,0.05738552,127.17,127.15,0.05661317]
[1741560058012,0.05738552,127.17,127.15,7.92181317]
[1741560059102,0.05738552,127.17,127.16,7.8647]
[1741560060804,0.05738552,127.17,127.15,0.05661317]
[1741560061516,7.92158552,127.17,127.15,0.05661317]
[1741560061716,0.05738552,127.17,127.15,0.05661317]
[1741560062112,7.92178552,127.17,127.15,0.05661317]
[1741560062716,0.05738552,127.17,127.15,0.05661317]
[1741560063616,0.05738552,127.17,127.15,7.92181317]
[1741560063913,0.05738552,127.17,127.15,0.05661317]
[1741560065315,7.92148552,127.17,127.15,0.05661317]
[1741560066412,7.8647,127.16,127.15,0.05661317]
[1741560066611,0.05738552,127.17,127.15,0.05661317]
[1741560067220,7.92198552,127.17,127.15,0.05661317]
[1741560067516,0.05738552,127.17,127.15,0.05661317]
[1741560067713,7.92148552,127.17,127.15,0.05661317]
[1741560071620,0.05738552,127.17,127.15,0.05661317]
[1741560072015,0.05738552,127.17,127.15,7.92171317]
[1741560072214,0.05738552,127.17,127.15,0.05661317]
[1741560072415,7.8624,127.2,127.15,20.09619689]
[1741560072615,204.45338372,127.24,127.15,0.05661317]
[1741560072816,20.03958372,127.18,127.1,20.03958372]
[1741560073020,20.03958372,127.18,127.06,1.36870465]
[1741560073021,20.03958372,127.14,127.06,20.03958372]
[1741560073220,32.62,127.13,127.06,20.03958372]
[1741560073424,32.62,127.13,127.04,20.03958372]
[1741560073718,7.869,127.09,127.04,20.03958372]
[1741560074126,0.05803504,127.08,127.05,0.05265838]
[1741560074522,7.92773504,127.08,127.05,0.05265838]
[1741560075026,0.05803504,127.08,127.05,0.05265838]
[1741560078430,7.92783504,127.08,127.05,0.05265838]
[1741560078929,0.05803504,127.08,127.06,7.8708]
[1741560079224,0.05803504,127.08,127.07,32.10703677]
[1741560079420,0.05803504,127.08,127.05,72.43109515]
[1741560079623,0.05803504,127.08,127.05,64.55969515]
[1741560081027,0.05803504,127.08,127.06,7.8708]
[1741560081226,0.05803504,127.08,127.05,64.55969515]
[1741560081426,0.05803504,127.08,127.07,7.8703]
[1741560081625,0.05803504,127.08,127.07,39.97733677]
[1741560084532,7.8675,127.12,127.09,7.8689]
[1741560085534,7.8675,127.12,127.09,7.92823056]
[1741560086632,7.8675,127.12,127.09,0.05933056]
[1741560087235,7.8663,127.14,127.11,32.10703677]